Cogmind - Beta 15 @@@ ROGUE MODE // 2025.06.23 @ 00:43:59 Player: CheifClapdad Result: Destroyed by S-27 Virus with Autogun Performance ------------- Evolutions (4) 2000 Regions Visited (7) 1400 Robots Destroyed (72) 360 Value Destroyed (2340) 2340 Prototype IDs (0) 0 Alien Tech Used (0) 0 Bonus (132) 132 TOTAL SCORE: 6232 Bonus ------- High Alert Combat Kills 132 Cogmind --------- Core Integrity 0/850 Matter 258/300 Energy 99/100 System Corruption 13% Temperature Cool (0) Movement Core (50) Location -6/Lower Caves Parts ------- > --- POWER (1) -------- (None) > --- PROPULSION (4) --- (None) > --- UTILITY (7) ------ Advanced Terrain Scan Processor > --- WEAPON (3) ------- (None) > --- INVENTORY (5) ---- Advanced Targeting Computer Core Analyzer Improved Medium Armor Plating Peak State ------------ > --- POWER ------------ Micro Nuclear Core > --- PROPULSION ------- Light Treads Advanced Treads Wheel Compact Wheel > --- UTILITY ---------- Huge Storage Unit Advanced Targeting Computer Advanced Targeting Computer Kinecellerator Hardened Medium Armor Plating > --- WEAPON ----------- Light Assault Rifle Minigun > --- INVENTORY -------- Improved Heat Sink Improved Sensor Array Advanced Targeting Computer Advanced Targeting Computer Hardened Medium Armor Plating Hardened Medium Armor Plating Improved Light Armor Plating Hardlight Generator High-powered Tractor Beam Mini Grenade Launcher Mini Grenade Launcher [Rating: 31] Favorites ----------- Power Light Nuclear Core Engine Ion Engine Power Core Light Nuclear Core Propulsion Compact Wheel Treads Light Treads Wheel Compact Wheel Utility Advanced Targeting Computer Device Improved Sensor Array Storage Medium Storage Unit Processor Advanced Targeting Computer Protection Hardened Medium Armor Plating Weapon Autogun Energy Gun Medium Laser Ballistic Gun Autogun Launcher Mini Grenade Launcher Build | -11 -10 -9 -9 -8 -7 -6 -6 ------- Run | Yrd Mat Mat Min Mat Fac Fac Low Slots Evolved 8 | . . 2 . 2 2 2 . Power . | . . . . . . . . Propulsion 2 | . . 1 . . 1 . . Utility 5 | . . 1 . 2 . 2 . Weapon 1 | . . . . . 1 . . Parts Attached 58 | 6 5 13 . 12 14 7 1 Power 6 | 1 . 2 . 1 1 1 . Engine 2 | 1 . 1 . . . . . Core 4 | . . 1 . 1 1 1 . Reactor . | . . . . . . . . Propulsion 15 | 2 . 4 . 3 5 1 . Treads 5 | 1 . 1 . 2 1 . . Leg . | . . . . . . . . Wheel 10 | 1 . 3 . 1 4 1 . Hover . | . . . . . . . . Flight . | . . . . . . . . Utility 23 | 1 3 4 . 5 5 4 1 Device 7 | . 1 1 . . 2 3 . Storage 4 | 1 1 . . 1 1 . . Processor 5 | . 1 . . 2 1 . 1 Hackware . | . . . . . . . . Protection 7 | . . 3 . 2 1 1 . Artifact . | . . . . . . . . Weapon 14 | 2 2 3 . 3 3 1 . Energy Gun 1 | 1 . . . . . . . Energy Cannon . | . . . . . . . . Ballistic Gun 10 | 1 2 2 . 2 2 1 . Ballistic Cannon . | . . . . . . . . Launcher 3 | . . 1 . 1 1 . . Special Weapon . | . . . . . . . . Impact Weapon . | . . . . . . . . Slashing Weapon . | . . . . . . . . Piercing Weapon . | . . . . . . . . Special Melee Weapon . | . . . . . . . . Unidentified Prototypes . | . . . . . . . . Corrupted Parts 4 | . . . . . 2 2 . System Corruption 27 | . . . . . 15 12 . Parts Lost 36 | . 1 7 . 5 20 3 . Power 3 | . . 1 . 1 1 . . Propulsion 13 | . . 2 . 2 8 1 . Utility 10 | . 1 2 . . 5 2 . Weapon 10 | . . 2 . 2 6 . . Highest Loss Streak 13 | . 1 3 . 1 13 3 . To Critical Strikes . | . . . . . . . . Average Backups 8 | 1 4 8 10 9 10 3 3 Power . | . 1 1 . . . . . Propulsion . | 1 2 1 . . . . . Utility 4 | . . 2 7 6 7 3 3 Weapon 2 | . 1 4 3 3 2 . . Tool/Special . | . . . . . . . . Unused Backups 15 | . . 2 . 4 4 2 3 Power 2 | . . 1 . . . 1 . Propulsion 1 | . . . . 1 . . . Utility 11 | . . 1 . 2 4 1 3 Weapon 1 | . . . . 1 . . . Tool/Special . | . . . . . . . . Average Slot Usage (%) 77 | . 85 93 88 95 75 9 2 Engine 2 | . 14 9 . . . . . Core 4 | . . 1 11 7 6 . . Treads 8 | . 14 6 . 14 6 . . Wheel 13 | . 12 25 22 11 10 . . Device 3 | . 1 11 . . 4 2 . Storage 8 | . 14 11 11 9 6 . . Processor 9 | . 1 . . 17 13 . 2 Protection 10 | . . 5 22 18 6 2 . Ballistic Gun 15 | . 17 21 22 15 16 3 . Peak Build Rating 31 | 6 10 19 18 28 31 14 5 Average Rating 18 | 4 6 12 18 25 25 6 2 On Entrance 10 | . 6 10 18 18 27 1 6 Naked Turns 312 | . . . . . 84 59 169 Heaviest Build 103 | 13 22 37 37 37 103 12 . Greatest Support 46 | 20 20 32 32 42 46 10 3 Greatest Overweight (x) 10 | 1 5 2 1 1 10 3 . Average Overweight (x) . | . . . 1 . 2 . . Largest Inventory Capacity 25 | 8 10 10 10 10 25 5 5 Average Capacity 11 | 6 9 10 10 10 20 5 5 Most Carried 13 | 3 10 10 10 10 13 5 3 Average Carried 8 | 2 4 8 10 9 10 3 3 Final Capacity 10 | 8 10 10 10 10 5 5 5 Final Carried 10 | 3 10 10 10 10 5 3 3 Class Distribution -------------------- 76% | Mutant 12% | Scavenger-Mutant 10% | Scavenger-Gunner Dominant Class ---------------- Mutant | -10/Materials Mutant | -9/Materials Mutant | -9/Mines Mutant | -8/Materials Scavenger-Gunner | -7/Factory Mutant | -6/Factory Mutant | -6/Lower Caves Resources | -11 -10 -9 -9 -8 -7 -6 -6 ----------- Run | Yrd Mat Mat Min Mat Fac Fac Low Matter Collected 2614 | 260 119 716 10 855 308 101 245 Remotely 407 | . 10 397 . . . . . Salvage Created 2656 | . 220 824 10 1130 414 58 . Parts 149 | . 8 47 . 68 22 4 . Haulers Intercepted 1 | . . . . 1 . . . Recyclers Shooed 5 | . . 3 . 2 . . . Parts Field Recycled . | . . . . . . . . Retrieved Matter . | . . . . . . . . Parts Self-Destructed 5 | . . . . . . . 5 Prevented . | . . . . . . . . Kills | -11 -10 -9 -9 -8 -7 -6 -6 ------- Run | Yrd Mat Mat Min Mat Fac Fac Low Combat Hostiles Destroyed 57 | . 2 19 1 26 8 1 . Melee 1 | . 1 . . . . . . Guns 42 | . 1 17 1 18 4 1 . AOE 14 | . . 2 . 8 4 . . Classes Destroyed 11 | . 3 3 1 3 1 . . Worker 4 | . . . . 4 . . . Builder 2 | . . . . 1 1 . . Tunneler 1 | . . . . . 1 . . Hauler 1 | . . . . 1 . . . Recycler 5 | . 2 1 . . 2 . . Watcher 3 | . 1 1 . 1 . . . Swarmer 14 | . . 4 . 6 4 . . Grunt 30 | . 2 9 . 15 4 . . Duelist 2 | . . 1 . 1 . . . Sentry 10 | . . 5 . 4 . 1 . Assembled 1 | . . . 1 . . . . Best Kill Streak 6 | . 2 4 1 6 4 1 . Combat Bots Only 5 | . 1 4 1 5 4 1 . Max Kills in Single Turn 4 | . 1 2 1 4 2 1 . Gunslinging . | . . . . . . . . Exploded 3 | . . 2 . 3 2 . . Melee 1 | . 1 . . . . . . Uniques/NPCs Destroyed . | . . . . . . . . Combat | -11 -10 -9 -9 -8 -7 -6 -6 -------- Run | Yrd Mat Mat Min Mat Fac Fac Low Hostile Shots Fired 550 | . 25 88 13 84 196 74 70 Missed 172 | . 2 22 3 22 67 26 30 Hits 378 | . 23 66 10 62 129 48 40 Melee 2 | . . 1 . . . . 1 Projectile 376 | . 23 65 10 62 129 48 39 AOE 5 | . . . . . 3 2 . Critical Strikes 9 | . . 1 1 2 4 . 1 Damage Taken 5590 | . 281 832 131 1045 2072 595 634 Core 1869 | . 52 161 26 146 629 221 634 Absorbed by Shields . | . . . . . . . . Core Remaining (%) 63 | 100 79 . 53 73 10 . . Volleys Fired 238 | . 16 79 8 76 35 24 . Largest 3 | . 2 2 2 2 3 1 . Hottest 99 | . 70 53 46 55 99 30 . Shots Fired 443 | . 28 155 16 144 75 25 . Gun 414 | . 28 154 16 136 55 25 . Cannon . | . . . . . . . . Launcher 29 | . . 1 . 8 20 . . Special . | . . . . . . . . Kinetic 402 | . 16 154 16 136 55 25 . Thermal 12 | . 12 . . . . . . Explosive 29 | . . 1 . 8 20 . . Electromagnetic . | . . . . . . . . Robot Hit Streak 28 | . 9 12 1 22 17 28 . Robot Miss Streak 4 | . 2 4 3 4 4 1 . Penetration Max . | . . . . . . . . Secondary Targets 5 | . 1 2 . 2 . . . Max Gunslinging Chain 1 | . 1 1 . 1 . . . Shots Hit Robots 328 | . 22 103 4 114 64 21 . Core Hits 146 | . 9 33 1 66 34 3 . Critical Kills 1 | . . 1 . . . . . Critical Parts Destroyed 1 | . . . . 1 . . . Critical Strikes 3 | . . 1 . 1 . 1 . Destroy 3 | . . 1 . 1 . 1 . Melee Attacks . | . . . . . . . . Impact . | . . . . . . . . Slashing . | . . . . . . . . Piercing . | . . . . . . . . Sneak Attacks . | . . . . . . . . Combat Hostiles . | . . . . . . . . Follow-up Attacks . | . . . . . . . . Damage Inflicted 6384 | . 245 1553 55 2617 1377 537 . Guns 4404 | . 242 1439 55 1533 603 532 . Cannons . | . . . . . . . . Explosions 1962 | . . 110 . 1084 768 . . Melee . | . . . . . . . . Ramming 18 | . 3 4 . . 6 5 . Kinetic 4290 | . 128 1439 55 1533 603 532 . Thermal 114 | . 114 . . . . . . Explosive 1962 | . . 110 . 1084 768 . . Electromagnetic . | . . . . . . . . Impact . | . . . . . . . . Slashing . | . . . . . . . . Piercing . | . . . . . . . . Highest Corruption 16 | . . . . 5 16 13 13 Average Corruption 7 | . . . . 4 10 11 13 Corruption Purged . | . . . . . . . . Corruption Blocked . | . . . . . . . . Effects 59 | . . . . 22 17 7 13 Message Errors 15 | . . . . 6 3 2 4 Matter Fused 12 | . . . . 6 2 2 2 Heat Flow Errors 4 | . . . . 2 1 . 1 Energy Discharges 6 | . . . . . 4 1 1 Parts Rejected 1 | . . . . 1 . . . Data Loss (minor) 12 | . . . . 3 5 1 3 Data Loss (major) 1 | . . . . 1 . . . Misfires 3 | . . . . 1 1 1 . Alerts 2 | . . . . 2 . . . Misdirections 2 | . . . . . . . 2 Weapon Failures 1 | . . . . . 1 . . Overload Shots . | . . . . . . . . Overflow Damage 78 | . . 24 . 31 23 . . Projectiles . | . . . . . . . . Explosions 78 | . . 24 . 31 23 . . Melee . | . . . . . . . . Knockbacks . | . . . . . . . . Impact . | . . . . . . . . Kinetic . | . . . . . . . . Secondary . | . . . . . . . . Self-Inflicted Damage 293 | . . 20 . 99 172 2 . Shots 11 | . . 1 . 3 7 . . Rammed 8 | . 1 1 . . 3 2 1 Targets Rammed 9 | . 2 1 . . 3 2 1 Kicked . | . . . . . . . . Crushed 1 | . 1 . . . . . . Highest Temperature 293 | . 244 81 148 293 127 15 186 Average Temperature 63 | . 122 17 77 78 35 7 93 Received Heat Transfer 1738 | . 156 315 . 522 399 216 130 Effects 2 | . 2 . . . . . . Interference 2 | . 2 . . . . . . Siege Activations . | . . . . . . . . Martial Activations . | . . . . . . . . Shielding Activations . | . . . . . . . . Robots Disrupted . | . . . . . . . . Combat Hostiles . | . . . . . . . . Robots Corrupted . | . . . . . . . . Combat Hostiles . | . . . . . . . . Parts Fried . | . . . . . . . . Impact Corruptions . | . . . . . . . . Robots Melted . | . . . . . . . . Combat Hostiles . | . . . . . . . . Parts Melted 2 | . 2 . . . . . . Heat Transferred 333 | . 333 . . . . . . Parts Sabotaged . | . . . . . . . . Parts Stolen . | . . . . . . . . Parts Stripped . | . . . . . . . . Power Chain Reactions . | . . . . . . . . Alert | -11 -10 -9 -9 -8 -7 -6 -6 ------- Run | Yrd Mat Mat Min Mat Fac Fac Low Maximum Alert Level 2 | . . 1 . 2 2 . . Low Security (%) 53 | 100 100 54 100 52 4 100 . Level 1 26 | . . 45 . 24 42 . . Level 2 20 | . . . . 22 52 . . Level 3 . | . . . . . . . . Level 4 . | . . . . . . . . Level 5 . | . . . . . . . . High Security . | . . . . . . . . Max Security . | . . . . . . . . Peak Influence 602 | . 38 283 91 588 602 179 . Initial 261 | . . . 91 . 261 179 . Average 198 | . 5 138 29 193 413 123 . Influence Increases 2395 | . 68 559 . 972 691 45 60 Destroy 0b10 Robot/C 1120 | . 40 380 . 520 160 20 . Destroy 0b10 Robot/NC 80 | . 15 10 . 35 20 . . Destroy Leader 278 | . 12 112 . 124 20 10 . Successful Hack 5 | . . . . . 5 . . Disable Machine 255 | . . 30 . 30 195 . . Anti-Garrison Action 400 | . . . . 200 200 . . Destroy Structure 92 | . 1 12 . 63 16 . . Lose Combat Pursuer 165 | . . 15 . . 75 15 60 Influence Decreases 2390 | . 68 323 236 396 901 347 119 Entered New Map 672 | . . . 145 . 315 187 25 Time Decay 1370 | . 58 263 91 348 386 130 94 Lost Part 348 | . 10 60 . 48 200 30 . Squads Dispatched 12 | . . 3 . 3 6 . . Investigation 3 | . . . . 2 1 . . Extermination 1 | . . . . . 1 . . Reinforcement 5 | . . 3 . . 2 . . Assault 2 | . . . . . 2 . . Garrison 1 | . . . . 1 . . . Intercept . | . . . . . . . . Searches Triggered . | . . . . . . . . Construction Impeded 1 | . . 1 . . . . . Haulers Reinforced . | . . . . . . . . Active Scanning Responses . | . . . . . . . . Cargo Convoy Interrupts . | . . . . . . . . Stealth | -11 -10 -9 -9 -8 -7 -6 -6 --------- Run | Yrd Mat Mat Min Mat Fac Fac Low Distress Signals 11 | . 1 6 1 3 . . . Communications Jammed . | . . . . . . . . Distress Signals . | . . . . . . . . Times Spotted 109 | . 4 26 2 37 17 5 18 Peak Tracking Total 7 | . 2 5 2 6 4 3 7 Tactical Retreats 10 | . . 1 1 . 5 1 2 Traps | -11 -10 -9 -9 -8 -7 -6 -6 ------- Run | Yrd Mat Mat Min Mat Fac Fac Low Traps Triggered 10 | . 4 . . 4 2 . . Indirectly 1 | . . . . . 1 . . Trap Hack Attempts . | . . . . . . . . Triggered . | . . . . . . . . Disarmed . | . . . . . . . . Reprogrammed . | . . . . . . . . Reused . | . . . . . . . . Traps Extracted . | . . . . . . . . Installed . | . . . . . . . . Triggered . | . . . . . . . . Machines | -11 -10 -9 -9 -8 -7 -6 -6 ---------- Run | Yrd Mat Mat Min Mat Fac Fac Low Machines Disabled 17 | . . 2 . 2 13 . . Max in Single Turn 7 | . . 1 . 1 7 . . Garrison Access 3 | . . . . 1 2 . . Machines Repaired . | . . . . . . . . Machines Dismantled . | . . . . . . . . Machines Sabotaged . | . . . . . . . . Overloaded Fab Kills . | . . . . . . . . Hacking | -11 -10 -9 -9 -8 -7 -6 -6 --------- Run | Yrd Mat Mat Min Mat Fac Fac Low Machines Accessed 3 | . . . . 1 2 . . Terminals 1 | . . . . . 1 . . Fabricators . | . . . . . . . . Repair Stations . | . . . . . . . . Recycling Units . | . . . . . . . . Scanalyzers . | . . . . . . . . Garrison Access 2 | . . . . 1 1 . . Total Hacks 7 | . . . . 1 6 . . Successful 3 | . . . . 1 2 . . Failed 4 | . . . . . 4 . . Catastrophic . | . . . . . . . . Database Lockouts . | . . . . . . . . Manual 4 | . . . . 1 3 . . Terminals 3 | . . . . . 3 . . Fabricators . | . . . . . . . . Repair Stations . | . . . . . . . . Recycling Units . | . . . . . . . . Scanalyzers . | . . . . . . . . Garrison Access 4 | . . . . 1 3 . . Terminal Hacks 1 | . . . . . 1 . . Open DSF 1 | . . . . . 1 . . Fabricator Hacks . | . . . . . . . . Repair Station Hacks . | . . . . . . . . Recycling Unit Hacks . | . . . . . . . . Scanalyzer . | . . . . . . . . Garrison Access Hacks . | . . . . . . . . Unauthorized Hacks 2 | . . . . 1 1 . . Terminals . | . . . . . . . . Fabricators . | . . . . . . . . Repair Stations . | . . . . . . . . Recycling Units . | . . . . . . . . Scanalyzers . | . . . . . . . . Garrison Access 2 | . . . . 1 1 . . Jam 2 | . . . . 1 1 . . Data Cores Recovered . | . . . . . . . . Used . | . . . . . . . . Hacking Detections 2 | . . . . . 2 . . Full Trace Events . | . . . . . . . . Feedback Events . | . . . . . . . . Feedback Blocked . | . . . . . . . . Robot Schematics Acquired . | . . . . . . . . Robots Built . | . . . . . . . . Authchips . | . . . . . . . . Time . | . . . . . . . . Total Robot Build Rating . | . . . . . . . . Part Schematics Acquired . | . . . . . . . . Parts Built . | . . . . . . . . Authchips . | . . . . . . . . Time . | . . . . . . . . Total Part Build Rating . | . . . . . . . . Parts Repaired . | . . . . . . . . Time . | . . . . . . . . Parts Recycled . | . . . . . . . . Recycled Matter . | . . . . . . . . Retrieved Matter . | . . . . . . . . Retrieved Components . | . . . . . . . . Parts Scanalyzed . | . . . . . . . . Part Schematics Acquired . | . . . . . . . . Parts Damaged . | . . . . . . . . Bothacking | -11 -10 -9 -9 -8 -7 -6 -6 ------------ Run | Yrd Mat Mat Min Mat Fac Fac Low Used RIF Installer . | . . . . . . . . Robots Hacked . | . . . . . . . . Non-combat . | . . . . . . . . Combat . | . . . . . . . . Robot Hacks Applied . | . . . . . . . . Relay Couplers Released 2 | . . . . . 2 . . Machine Destruction 2 | . . . . . 2 . . Fabnet Peak Effective % . | . . . . . . . . Robots Rewired . | . . . . . . . . Allies Hacked . | . . . . . . . . Hacks Repelled . | . . . . . . . . Allies | -11 -10 -9 -9 -8 -7 -6 -6 -------- Run | Yrd Mat Mat Min Mat Fac Fac Low Total Allies . | . . . . . . . . Largest Group . | . . . . . . . . Highest-Rated Group . | . . . . . . . . Highest-Rated Ally . | . . . . . . . . Total Orders . | . . . . . . . . Ally Attacks . | . . . . . . . . Total Damage . | . . . . . . . . Kills . | . . . . . . . . Allies Corrupted . | . . . . . . . . Allies Melted . | . . . . . . . . Intel | -11 -10 -9 -9 -8 -7 -6 -6 ------- Run | Yrd Mat Mat Min Mat Fac Fac Low Active Infowar (turns) 809 | . . 376 . . 433 . . Sensors 809 | . . 376 . . 433 . . Robot Analysis Total . | . . . . . . . . Derelict Logs Recovered 2 | . . . . . . . 2 Drone Launches . | . . . . . . . . Drone Recoveries . | . . . . . . . . Exploration | -11 -10 -9 -9 -8 -7 -6 -6 ------------- Run | Yrd Mat Mat Min Mat Fac Fac Low Turns Passed 4180 | 81 302 724 308 1331 916 263 255 Spaces Moved 3041 | 79 165 395 250 781 662 206 503 Core 885 | 11 4 . . . 164 203 503 Treads 663 | 4 79 57 . 523 . . . Legs . | . . . . . . . . Wheels 1493 | 64 82 338 250 258 498 3 . Hover . | . . . . . . . . Flight . | . . . . . . . . Fastest Speed 50 | 50 95 90 115 90 50 50 50 Average Speed 110 | 88 138 118 115 140 119 85 50 Slowest Speed 300 | 160 300 240 115 225 230 200 50 Overloaded Moves . | . . . . . . . . Propulsion Burnouts . | . . . . . . . . Robots Hopped . | . . . . . . . . Potential Cave-ins . | . . . . . . . . Cave-ins Triggered . | . . . . . . . . Exploration Rate (%) 30 | 5 28 32 46 51 19 5 54 Regions Visited 7 Branch Regions 2 Pre-discovered Areas . | . . . . . . . . Known Exits Taken . | . . . . . . . . Unknown Exits Taken 7 | 1 1 1 1 1 1 1 . Scrap Searched 2 | . . . . . . . 2 Spaces Dug . | . . . . . . . . Terrain Destroyed 103 | . . 9 . 64 30 . . Melee . | . . . . . . . . Projectile . | . . . . . . . . AOE 103 | . . 9 . 64 30 . . Terrain Rammed . | . . . . . . . . Walls Destroyed . | . . . . . . . . Machines Disabled . | . . . . . . . . Actions | -11 -10 -9 -9 -8 -7 -6 -6 --------- Run | Yrd Mat Mat Min Mat Fac Fac Low Total 3484 | 87 208 524 257 900 730 272 506 Wait 66 | . 8 24 . 10 4 20 . Move 3035 | 78 164 394 249 780 661 206 503 Hop . | . . . . . . . . Pick Up 36 | 3 7 8 . 9 6 3 . Fast Attach 34 | 6 8 2 . 5 5 7 1 Attach 23 | . 1 8 . 4 8 2 . Detach 1 | . . . . . . 1 . Swap 18 | . 1 4 . 8 5 . . Drop 25 | . 1 4 . 8 3 8 1 Fire 238 | . 16 79 8 76 35 24 . Melee . | . . . . . . . . Ram 5 | . . . . . 3 1 1 Kick . | . . . . . . . . Crush 3 | . 2 1 . . . . . Escape Stasis . | . . . . . . . . Rewire . | . . . . . . . . Trap . | . . . . . . . . Miscellaneous . | . . . . . . . . Route ------- -11/Scrapyard -10/Materials -9/Materials (discovered 2 exits: *Min / [*Sto]) -9/Mines -8/Materials -7/Factory -6/Factory -6/Lower Caves History --------- Turn | Location | Event 6 | -11/Scrapyard | Discovered new exit (range 16) 82 | -11/Scrapyard | Entered Materials 330 | -10/Materials | Build established: Mutant 333 | -10/Materials | Discovered new exit (range 10) 384 | -10/Materials | Entered another Materials area 384 | -9/Materials | Evolved 2 slots: Propulsion x1, Utility x1 792 | -9/Materials | Lost 3 parts (2u1w) 917 | -9/Materials | Discovered new exit (range 8) 987 | -9/Materials | Discovered new exit (range 7) 1108 | -9/Materials | Entered Mines 1161 | -9/Mines | Met a Derelict bent on vengeance 1188 | -9/Mines | Assembled infested the area 1408 | -9/Mines | Discovered new exit (range 5) 1416 | -9/Mines | Entered Materials 1416 | -8/Materials | Evolved 2 slots: Utility x2 2095 | -8/Materials | Garrison activated, responded to threat 2606 | -8/Materials | Discovered new exit (range 15) 2747 | -8/Materials | Entered Factory 2747 | -7/Factory | Evolved 2 slots: Propulsion x1, Weapon x1 2866 | -7/Factory | Build established: Scavenger-Mutant 3108 | -7/Factory | Lost 5 parts (2n2u1w) 3384 | -7/Factory | Build established: Scavenger-Gunner 3404 | -7/Factory | System corruption reached 10% 3569 | -7/Factory | Core integrity fell below 50% 3579 | -7/Factory | Released all parts (2) 3581 | -7/Factory | Core integrity fell below 20% 3609 | -7/Factory | Lost 13 parts (1p4n3u5w) 3655 | -7/Factory | Discovered new exit (range 15) 3663 | -7/Factory | Entered another Factory area 3663 | -6/Factory | Evolved 2 slots: Utility x2 3789 | -6/Factory | System corruption reached 10% 3836 | -6/Factory | Build established: Mutant 3852 | -6/Factory | Lost 3 parts (1n2u) 3919 | -6/Factory | Discovered new exit (range 6) 3926 | -6/Factory | Entered Lower Caves 3958 | -6/Lower Caves | Attracted the attention of an 0b10 checkpoint 3973 | -6/Lower Caves | Encountered a Warlord checkpoint 4030 | -6/Lower Caves | Learned location of 1 exit from Factory 4034 | -6/Lower Caves | Attracted the attention of an 0b10 outpost 4042 | -6/Lower Caves | Core integrity fell below 50% 4083 | -6/Lower Caves | Learned Factory stockpile data 4163 | -6/Lower Caves | Core integrity fell below 20% 4181 | -6/Lower Caves | Destroyed by S-27 Virus with Autogun Last Messages --------------- 04083_ Acquired derelict log, extracted data. Data stored: Factory stockpile data. 04084_ Slug penetrates DY-J9J(g). 04091_ Searching scrap... 04091_ Found Imp. Signal Interpreter. 04091_ Found Lrg. Storage Unit. 04091_ Found Plasma Cannon. 04091_ Found Adv. Terrain Scan Processor. 04091_ Found 48 Matter. 04092_ System corrupted: Component data lost. 04092_ Acquired 48 matter. 04095_ Acquired Adv. Terrain Scan Processor. 04112_ System corrupted: Heat flow error (+223). 04140_ N=ZVLAJUO9QXSS=YEH Z:Z&CPDQWDA 04158_ Critical hit (Burn: +50). 04180_ Searching scrap... 04180_ Found Pulse Rifle. 04180_ Found Barrage Gun. 04180_ Found Hvy. Flak Cannon. 04180_ Found 48 Matter. Map ----- +----------------------------------------------------+ | ?????????????????????????????????????????????????? | | ?????????????????????????????????????????????????? | | ?????????????????????????????????????????????????? | | ?????????????????????????????????????????????????? | | ?????????????????????????????????????????????????? | | ?????????????????????????????????????????????????? | | ?????????????????????????????????????????????????? | | ?????????????????????????????????????????????????? | | ?????????????????????????????????????????????????? | | ?????????????????????????????????????????????????? | | ?????????????????????????????????????????????????? | | ?????????????????????????????????????????????????? | | ???????????????????# ????????????????????????????? | | ??????????????????? ???????????????????????????? | | ??????????????????? ???????????????????????????? | | ???????????????????? ???????????????????????????? | | ????????????????????# ??????????????????????????? | | ????????????????????# ??###?????????????????????? | | ????????????????????# ### ##????????????????????? | | ????????????????????# #????????????????????? | | ??????????????????### ##???????????????###?? | | ??????????????????# ##??????????????# ##? | | ?????????????????## #?????????????## ## | | ????????????# ## ##?????????#### | | ??????????# ##???????## | | ???????????? " @[[ ######### | | ???????????? " " %] # | | ???????????? " " """" # # | | ????????????? """ " " s# ### ###### | | ??????????????? "" " ss ## ####????? | | ?????????????? " #### ##???????? | | ??????????????""""" " #?# #????????? | | ??????????????????"""" #?# ##???????? | | ??????????????????? """ " #?# *####????? | | ??????????????????" """" ### % ###??? | | ???????????????????" #??? | | ???????????????????" ##??# | | ???????????????????" ##### ###### | | ?????????????????? #???### ## | | ??????????????????##############????###### | | ??????????????????????????####?????## ##?# #### | | ??????????????????????????# #??### ### #?## | | ???????????????????????????# ### ## ### | | ????????????????????????????# # # | | ?????????????????????????????# ## | | ?????????????????????????????## ##? | | ??????????????????????????????# ##?? | | ??????????????????????????????## ### ## ##??? | | ???????????????????????????????#####?#########???? | | ?????????????????????????????????????????????????? | +----------------------------------------------------+ Best States ------------- Heat Dissipation 37 Energy Generation 15 Energy Capacity 250 Matter Stores 300 Matter Capacity 300 Sight Range 16 Robot Scan Range 15 Terrain Scan Density 210 Armor Coverage 450 Evasion (%) 50 Targeting Accuracy 16 Recoil Reduction 2 Kinecelleration 30 Item Schematics ----------------- None Robot Schematics ------------------ None Fabricated ------------ Nothing Repaired ---------- Nothing Alien Tech Used ----------------- None Achievements -------------- None Challenges ------------ None Game ------ Seed SystemHoverBlasthammer Manual? 0 Play Time 00:30:09 Cumulative 90.2 hours Start 2025.06.23 @ 00:15:46 End 2025.06.23 @ 00:43:59 Sessions 1 Manual Loads 0 Difficulty Rogue Special Mode None Game No. 120 Rogue 120 Adventurer 0 Explorer 0 Win Type - Total 1 Types 1/0/0/0/0/0/0/0/0/0 Lore% 38 Gallery% 49 Achievement% 42 Wizard Run 0 Options --------- Layout 1 ASCII 0 Keyboard 0 Movement Arrows Keybinds 0 Fullscreen 1 Font 24/Smallcaps Map View 50x35 Zoom Use 0% Tactical HUD 1 Map Filters NONE Filters NONE Steam X RUN: 4d73c87a-7c06-405a-b570-b4f87a678870